[Event "*** Titled Tuesday Blitz"]
[Site "Chess.com"]
[Date "2021.03.02"]
[Round "1"]
[White "bascheyaro"]
[Black "korkmaz16"]
[Result "0-1"]
[WhiteElo "2697"]
[BlackElo "2403"]
[TimeControl "180+1"]
[EndTime "10:06:16 PST"]
[Termination "korkmaz16 won by resignation"]

1. d4 {[%clk 0:01:08.8]} 1... Nf6 {[%clk 0:02:59.3]} 2. Nf3 {[%clk 0:01:08.7]}
2... g6 {[%clk 0:02:58]} 3. c4 {[%clk 0:01:09.2]} 3... Bg7 {[%clk 0:02:57.3]} 4.
Nc3 {[%clk 0:01:10.1]} 4... d5 {[%clk 0:02:56.4]} 5. Bf4 {[%clk 0:01:10.1]} 5...
c5 {[%clk 0:02:51.4]} 6. dxc5 {[%clk 0:01:09.7]} 6... Qa5 {[%clk 0:02:50.5]} 7.
Be5 {[%clk 0:01:09.6]} 7... dxc4 {[%clk 0:02:33.4]} 8. e3 {[%clk 0:01:06.6]}
8... O-O {[%clk 0:02:19.8]} 9. Bxc4 {[%clk 0:01:06]} 9... Qxc5 {[%clk
0:02:16.3]} 10. Qb3 {[%clk 0:01:05.7]} 10... Nc6 {[%clk 0:02:12.5]} 11. Bd4
{[%clk 0:01:01.3]} 11... Nxd4 {[%clk 0:02:04.9]} 12. exd4 {[%clk 0:01:02.2]}
12... Qb6 {[%clk 0:01:45.2]} 13. Qxb6 {[%clk 0:01:01.8]} 13... axb6 {[%clk
0:01:46.1]} 14. h3 {[%clk 0:01:02.1]} 14... e6 {[%clk 0:01:45.8]} 15. Ke2 {[%clk
0:01:01.9]} 15... Bd7 {[%clk 0:01:45.8]} 16. Bb5 {[%clk 0:00:59.1]} 16... Bxb5+
{[%clk 0:01:39.4]} 17. Nxb5 {[%clk 0:01:00]} 17... Nd5 {[%clk 0:01:35.4]} 18. g3
{[%clk 0:00:58.5]} 18... Rfc8 {[%clk 0:01:24.7]} 19. Rhd1 {[%clk 0:00:43.3]}
19... Bh6 {[%clk 0:01:17.9]} 20. Na3 {[%clk 0:00:37]} 20... b5 {[%clk
0:01:08.9]} 21. Kd3 {[%clk 0:00:36.2]} 21... Nb4+ {[%clk 0:01:07.4]} 22. Ke2
{[%clk 0:00:34.5]} 22... Nc2 {[%clk 0:01:07.3]} 23. Rab1 {[%clk 0:00:31]} 23...
Nxa3 {[%clk 0:01:07]} 24. bxa3 {[%clk 0:00:31.1]} 24... Rxa3 {[%clk 0:01:07.6]}
25. Rb2 {[%clk 0:00:28.6]} 25... Bc1 {[%clk 0:01:03.6]} 26. Rxb5 {[%clk
0:00:23.6]} 26... Rxa2+ {[%clk 0:01:03]} 27. Ke1 {[%clk 0:00:16.7]} 27... Rcc2
{[%clk 0:00:59.1]} 28. Rc5 {[%clk 0:00:13.7]} 28... Re2+ {[%clk 0:00:58.1]} 29.
Kf1 {[%clk 0:00:12.3]} 29... Rxf2+ {[%clk 0:00:58.5]} 30. Kg1 {[%clk 0:00:13]}
30... Be3 {[%clk 0:00:56.2]} 0-1

[Event "*** Titled Tuesday Blitz"]
[Site "Chess.com"]
[Date "2021.03.02"]
[Round "1"]
[White "tjychess"]
[Black "LileKoridze"]
[Result "0-1"]
[WhiteElo "2732"]
[BlackElo "2414"]
[TimeControl "180+1"]
[EndTime "10:06:17 PST"]
[Termination "LileKoridze won by resignation"]

1. d4 {[%clk 0:03:00.9]} 1... Nf6 {[%clk 0:02:58.9]} 2. c4 {[%clk 0:03:01.5]}
2... e6 {[%clk 0:02:59.4]} 3. Nf3 {[%clk 0:03:01.7]} 3... d5 {[%clk 0:02:59.5]}
4. Nc3 {[%clk 0:03:01.7]} 4... Bb4 {[%clk 0:02:59.7]} 5. Qa4+ {[%clk 0:02:58.2]}
5... Nc6 {[%clk 0:02:59]} 6. e3 {[%clk 0:02:58.7]} 6... O-O {[%clk 0:02:57.9]}
7. Qc2 {[%clk 0:02:58.3]} 7... Be7 {[%clk 0:02:48.4]} 8. Bd2 {[%clk 0:02:54.8]}
8... a6 {[%clk 0:02:47.2]} 9. a3 {[%clk 0:02:54]} 9... dxc4 {[%clk 0:02:47.1]}
10. Bxc4 {[%clk 0:02:54.9]} 10... b5 {[%clk 0:02:47.7]} 11. Ba2 {[%clk
0:02:49.9]} 11... Bb7 {[%clk 0:02:47.5]} 12. O-O {[%clk 0:02:48.5]} 12... Na5
{[%clk 0:02:47]} 13. Ne5 {[%clk 0:02:45.7]} 13... c5 {[%clk 0:02:25.4]} 14. dxc5
{[%clk 0:02:43.8]} 14... Bxc5 {[%clk 0:02:24.9]} 15. b4 {[%clk 0:02:36.3]} 15...
Bd6 {[%clk 0:02:24.6]} 16. f4 {[%clk 0:02:14.1]} 16... Nc6 {[%clk 0:02:20.8]}
17. Nxc6 {[%clk 0:02:13.3]} 17... Bxc6 {[%clk 0:02:20.5]} 18. Qd3 {[%clk
0:01:26.2]} 18... Bxf4 {[%clk 0:02:04.5]} 19. Qe2 {[%clk 0:01:14.3]} 19... Be5
{[%clk 0:01:59.2]} 20. Rac1 {[%clk 0:01:12.7]} 20... Qd6 {[%clk 0:01:53.6]} 21.
h3 {[%clk 0:01:01.6]} 21... Bh2+ {[%clk 0:01:49]} 22. Kh1 {[%clk 0:01:01.7]}
22... Qg3 {[%clk 0:01:39.6]} 23. Rf3 {[%clk 0:00:25.8]} 23... Bxf3 {[%clk
0:01:39]} 24. gxf3 {[%clk 0:00:26.7]} 24... Rfd8 {[%clk 0:01:22.9]} 25. Rd1
{[%clk 0:00:12.9]} 25... Qxh3 {[%clk 0:01:21]} 26. Qxh2 {[%clk 0:00:12.5]} 26...
Qxf3+ {[%clk 0:01:21.3]} 27. Qg2 {[%clk 0:00:13.4]} 27... Qh5+ {[%clk 0:01:14]}
28. Kg1 {[%clk 0:00:11.3]} 28... Rac8 {[%clk 0:01:12.1]} 29. Bb3 {[%clk
0:00:01.7]} 29... Rxc3 {[%clk 0:01:11.2]} 30. Bxc3 {[%clk 0:00:02.6]} 30...
Rxd1+ {[%clk 0:01:11.4]} 31. Bxd1 {[%clk 0:00:03.5]} 31... Qxd1+ {[%clk
0:01:11.9]} 32. Kh2 {[%clk 0:00:04.4]} 32... Qh5+ {[%clk 0:01:09]} 33. Kg1
{[%clk 0:00:04.2]} 33... Qg6 {[%clk 0:01:08.5]} 0-1

[Event "*** Titled Tuesday Blitz"]
[Site "Chess.com"]
[Date "2021.03.02"]
[Round "1"]
[White "bakki78"]
[Black "indfraeng"]
[Result "1-0"]
[WhiteElo "2774"]
[BlackElo "2406"]
[TimeControl "180+1"]
[EndTime "10:06:22 PST"]
[Termination "bakki78 won by checkmate"]

1. e4 {[%clk 0:02:59.8]} 1... e5 {[%clk 0:02:59.7]} 2. Nf3 {[%clk 0:02:59.4]}
2... Nc6 {[%clk 0:02:59.3]} 3. Bb5 {[%clk 0:02:59.1]} 3... a6 {[%clk 0:02:59.2]}
4. Ba4 {[%clk 0:02:59.1]} 4... Nf6 {[%clk 0:02:58.4]} 5. Nc3 {[%clk 0:02:58.7]}
5... b5 {[%clk 0:02:57.8]} 6. Bb3 {[%clk 0:02:58.3]} 6... Be7 {[%clk 0:02:54.6]}
7. a4 {[%clk 0:02:44.6]} 7... b4 {[%clk 0:02:53.4]} 8. Nd5 {[%clk 0:02:44.4]}
8... O-O {[%clk 0:02:48]} 9. Nxf6+ {[%clk 0:02:41.7]} 9... Bxf6 {[%clk
0:02:46.6]} 10. Bd5 {[%clk 0:02:41.8]} 10... Bb7 {[%clk 0:02:43.2]} 11. b3
{[%clk 0:02:41.3]} 11... Rb8 {[%clk 0:02:42.6]} 12. Bb2 {[%clk 0:02:40.7]} 12...
a5 {[%clk 0:02:41.2]} 13. Qe2 {[%clk 0:02:38.3]} 13... Nd4 {[%clk 0:02:36.4]}
14. Nxd4 {[%clk 0:02:37.3]} 14... exd4 {[%clk 0:02:20.2]} 15. Bxb7 {[%clk
0:02:33.2]} 15... Rxb7 {[%clk 0:01:40.7]} 16. O-O-O {[%clk 0:02:19.3]} 16... Re8
{[%clk 0:01:38.2]} 17. f4 {[%clk 0:02:16.6]} 17... d6 {[%clk 0:01:35.5]} 18.
Rhe1 {[%clk 0:02:13.9]} 18... c5 {[%clk 0:01:30.7]} 19. Qf3 {[%clk 0:01:52.8]}
19... Rbe7 {[%clk 0:01:30]} 20. d3 {[%clk 0:01:51.7]} 20... g6 {[%clk
0:01:24.4]} 21. Kb1 {[%clk 0:01:51.4]} 21... Bg7 {[%clk 0:01:23.1]} 22. f5
{[%clk 0:01:48.7]} 22... Re5 {[%clk 0:01:15]} 23. g4 {[%clk 0:01:30.9]} 23... d5
{[%clk 0:01:11.4]} 24. Rf1 {[%clk 0:01:30.6]} 24... dxe4 {[%clk 0:01:09.8]} 25.
dxe4 {[%clk 0:01:30.6]} 25... Rxe4 {[%clk 0:00:52.9]} 26. h4 {[%clk 0:01:25.2]}
26... Qxh4 {[%clk 0:00:47.5]} 27. fxg6 {[%clk 0:01:22]} 27... fxg6 {[%clk
0:00:47]} 28. Qf7+ {[%clk 0:01:22]} 28... Kh8 {[%clk 0:00:47.4]} 29. Rh1 {[%clk
0:01:22.4]} 29... Qxg4 {[%clk 0:00:34.1]} 30. Rdg1 {[%clk 0:01:15.7]} 30... Qe2
{[%clk 0:00:20.6]} 31. Qxg6 {[%clk 0:00:58.5]} 31... Qe1+ {[%clk 0:00:16.1]} 32.
Ka2 {[%clk 0:00:58.2]} 32... Kg8 {[%clk 0:00:03.1]} 33. Qxg7# {[%clk 0:00:57.2]}
1-0

[Event "*** Titled Tuesday Blitz"]
[Site "Chess.com"]
[Date "2021.03.02"]
[Round "1"]
[White "julinha97"]
[Black "NikolaGry"]
[Result "0-1"]
[WhiteElo "2299"]
[BlackElo "2604"]
[TimeControl "180+1"]
[EndTime "10:06:22 PST"]
[Termination "NikolaGry won by checkmate"]

1. e4 {[%clk 0:03:00.9]} 1... d5 {[%clk 0:02:59.2]} 2. exd5 {[%clk 0:03:00]}
2... Nf6 {[%clk 0:02:58.3]} 3. d4 {[%clk 0:02:58.9]} 3... Nxd5 {[%clk
0:02:58.3]} 4. Nf3 {[%clk 0:02:59.4]} 4... g6 {[%clk 0:02:57.2]} 5. c4 {[%clk
0:02:58.6]} 5... Nb6 {[%clk 0:02:56.5]} 6. Nc3 {[%clk 0:02:53.4]} 6... Bg7
{[%clk 0:02:56.2]} 7. Be3 {[%clk 0:02:54]} 7... O-O {[%clk 0:02:55.5]} 8. Rc1
{[%clk 0:02:54.5]} 8... Nc6 {[%clk 0:02:54.7]} 9. d5 {[%clk 0:02:44.3]} 9... Nb8
{[%clk 0:02:49.9]} 10. Be2 {[%clk 0:02:42.1]} 10... c6 {[%clk 0:02:46.3]} 11.
O-O {[%clk 0:02:38.4]} 11... Bg4 {[%clk 0:02:46.1]} 12. b3 {[%clk 0:02:09.1]}
12... N8d7 {[%clk 0:02:40.6]} 13. dxc6 {[%clk 0:02:07.6]} 13... bxc6 {[%clk
0:02:37.6]} 14. h3 {[%clk 0:02:06.9]} 14... Bxf3 {[%clk 0:02:28.1]} 15. Bxf3
{[%clk 0:02:07.8]} 15... Qc7 {[%clk 0:02:27.5]} 16. c5 {[%clk 0:01:58.9]} 16...
Nc8 {[%clk 0:02:27.1]} 17. b4 {[%clk 0:01:55.5]} 17... a6 {[%clk 0:02:21.6]} 18.
Qa4 {[%clk 0:01:54.7]} 18... Ne5 {[%clk 0:02:20.4]} 19. Be2 {[%clk 0:01:43.4]}
19... Na7 {[%clk 0:02:15]} 20. f4 {[%clk 0:01:42]} 20... Nb5 {[%clk 0:01:52.4]}
21. fxe5 {[%clk 0:01:08.5]} 21... Qxe5 {[%clk 0:01:50.5]} 22. Nd1 {[%clk
0:01:08.1]} 22... Rfd8 {[%clk 0:01:43.5]} 23. Qb3 {[%clk 0:00:52.5]} 23... e6
{[%clk 0:01:35.5]} 24. Bxb5 {[%clk 0:00:47.5]} 24... axb5 {[%clk 0:01:33.5]} 25.
Bf4 {[%clk 0:00:47]} 25... Qd4+ {[%clk 0:01:24.4]} 26. Kh1 {[%clk 0:00:47.5]}
26... Ra4 {[%clk 0:01:15.2]} 27. a3 {[%clk 0:00:40.5]} 27... Rda8 {[%clk
0:01:13.6]} 28. Rf3 {[%clk 0:00:31]} 28... Rxa3 {[%clk 0:01:09.9]} 29. Qxa3
{[%clk 0:00:30.9]} 29... Rxa3 {[%clk 0:01:09.8]} 30. Rxa3 {[%clk 0:00:30.9]}
30... Qxf4 {[%clk 0:01:09.7]} 31. Ra8+ {[%clk 0:00:31.4]} 31... Bf8 {[%clk
0:01:09.4]} 32. Rca1 {[%clk 0:00:31.5]} 32... Kg7 {[%clk 0:01:08.1]} 33. Rc8
{[%clk 0:00:25.8]} 33... Qxb4 {[%clk 0:01:01.5]} 34. Rxc6 {[%clk 0:00:24.4]}
34... Bxc5 {[%clk 0:01:00]} 35. Rc1 {[%clk 0:00:22]} 35... Qe1+ {[%clk
0:00:56.9]} 36. Kh2 {[%clk 0:00:20]} 36... Bg1+ {[%clk 0:00:56.8]} 37. Kh1
{[%clk 0:00:20.4]} 37... Bf2+ {[%clk 0:00:56.7]} 38. Kh2 {[%clk 0:00:19.9]}
38... Bg3# {[%clk 0:00:56.8]} 0-1

[Event "*** Titled Tuesday Blitz"]
[Site "Chess.com"]
[Date "2021.03.02"]
[Round "1"]
[White "KubaGepard"]
[Black "GM_Crest"]
[Result "0-1"]
[WhiteElo "2411"]
[BlackElo "2782"]
[TimeControl "180+1"]
[EndTime "10:06:24 PST"]
[Termination "GM_Crest won by resignation"]

1. d4 {[%clk 0:03:00.9]} 1... Nf6 {[%clk 0:02:58.7]} 2. Nf3 {[%clk 0:03:01]}
2... c5 {[%clk 0:02:57.3]} 3. d5 {[%clk 0:03:00.7]} 3... g6 {[%clk 0:02:53.9]}
4. Nc3 {[%clk 0:02:59.7]} 4... Bg7 {[%clk 0:02:53.6]} 5. e4 {[%clk 0:02:58.8]}
5... d6 {[%clk 0:02:54.2]} 6. Bc4 {[%clk 0:02:56.7]} 6... O-O {[%clk 0:02:51.7]}
7. a4 {[%clk 0:02:55.5]} 7... Na6 {[%clk 0:02:50.9]} 8. O-O {[%clk 0:02:52.2]}
8... Nc7 {[%clk 0:02:51.1]} 9. h3 {[%clk 0:02:49.8]} 9... b6 {[%clk 0:02:51.4]}
10. Qe2 {[%clk 0:02:46.3]} 10... a6 {[%clk 0:02:51.1]} 11. Rd1 {[%clk
0:02:46.6]} 11... Rb8 {[%clk 0:02:51.3]} 12. e5 {[%clk 0:02:46.9]} 12... Nfe8
{[%clk 0:02:50.8]} 13. Bf4 {[%clk 0:02:42.9]} 13... Qd7 {[%clk 0:02:49.4]} 14.
Ng5 {[%clk 0:02:33.4]} 14... b5 {[%clk 0:02:33.2]} 15. e6 {[%clk 0:02:21.7]}
15... fxe6 {[%clk 0:02:31.5]} 16. dxe6 {[%clk 0:02:21.5]} 16... Qc6 {[%clk
0:02:28.1]} 17. Nd5 {[%clk 0:02:18.5]} 17... Nxd5 {[%clk 0:02:18.5]} 18. Bxd5
{[%clk 0:02:17.9]} 18... Qb6 {[%clk 0:02:19.1]} 19. Nf7 {[%clk 0:02:11.3]} 19...
Nc7 {[%clk 0:02:17.8]} 20. Bxd6 {[%clk 0:01:53.3]} 20... exd6 {[%clk 0:02:04.4]}
21. e7 {[%clk 0:01:52.3]} 21... Nxd5 {[%clk 0:02:04.4]} 22. exf8=Q+ {[%clk
0:01:49.6]} 22... Bxf8 {[%clk 0:01:59.1]} 23. Rxd5 {[%clk 0:01:48.7]} 23... Kxf7
{[%clk 0:01:58.5]} 24. Re1 {[%clk 0:01:37.1]} 24... Bd7 {[%clk 0:01:58.5]} 25.
Qf3+ {[%clk 0:01:11.4]} 25... Kg8 {[%clk 0:01:56.2]} 26. Qf6 {[%clk 0:01:05.6]}
26... Re8 {[%clk 0:01:52.3]} 27. Rxe8 {[%clk 0:00:48.7]} 27... Bxe8 {[%clk
0:01:51.4]} 28. Rd3 {[%clk 0:00:49.2]} 28... Qc7 {[%clk 0:01:44.8]} 29. axb5
{[%clk 0:00:47.6]} 29... axb5 {[%clk 0:01:44.6]} 30. Rf3 {[%clk 0:00:47.4]}
30... Qe7 {[%clk 0:01:42.9]} 31. Qf4 {[%clk 0:00:33.3]} 31... Qe1+ {[%clk
0:01:39.2]} 32. Kh2 {[%clk 0:00:32.9]} 32... Qe5 {[%clk 0:01:39.8]} 33. Qxe5
{[%clk 0:00:30.2]} 33... dxe5 {[%clk 0:01:40]} 34. Re3 {[%clk 0:00:29.5]} 34...
Kf7 {[%clk 0:01:39.3]} 35. g3 {[%clk 0:00:26.1]} 35... Bd6 {[%clk 0:01:38.6]}
36. Kg2 {[%clk 0:00:26]} 36... Bc6+ {[%clk 0:01:38.1]} 37. f3 {[%clk 0:00:26.2]}
37... b4 {[%clk 0:01:37.4]} 38. b3 {[%clk 0:00:26.2]} 38... Ke6 {[%clk
0:01:36.7]} 39. Rd3 {[%clk 0:00:25]} 39... e4 {[%clk 0:01:36.5]} 40. Re3 {[%clk
0:00:23.4]} 40... Ke5 {[%clk 0:01:35.4]} 41. fxe4 {[%clk 0:00:21.8]} 41... Bxe4+
{[%clk 0:01:35.5]} 42. Kf2 {[%clk 0:00:22.3]} 42... c4 {[%clk 0:01:36]} 43. Re2
{[%clk 0:00:15.1]} 43... c3 {[%clk 0:01:35.3]} 44. Ke1 {[%clk 0:00:14]} 44...
Bc5 {[%clk 0:01:34.4]} 45. g4 {[%clk 0:00:14]} 45... Kf4 {[%clk 0:01:34.3]} 46.
g5 {[%clk 0:00:13.6]} 46... Be3 {[%clk 0:01:30.3]} 47. h4 {[%clk 0:00:13.8]}
47... Bd2+ {[%clk 0:01:29.9]} 48. Kd1 {[%clk 0:00:13]} 48... Bf3 {[%clk
0:01:29.4]} 49. h5 {[%clk 0:00:13.5]} 49... Bxe2+ {[%clk 0:01:29.6]} 50. Kxe2
{[%clk 0:00:13.9]} 50... Kxg5 {[%clk 0:01:30.1]} 51. hxg6 {[%clk 0:00:14.3]}
51... hxg6 {[%clk 0:01:30.4]} 0-1

[Event "*** Titled Tuesday Blitz"]
[Site "Chess.com"]
[Date "2021.03.02"]
[Round "1"]
[White "Pantata007"]
[Black "nocnypako"]
[Result "0-1"]
[WhiteElo "2245"]
[BlackElo "2553"]
[TimeControl "180+1"]
[EndTime "10:06:24 PST"]
[Termination "nocnypako won on time"]

1. d4 {[%clk 0:02:58.7]} 1... Nf6 {[%clk 0:02:59.4]} 2. c4 {[%clk 0:02:52.3]}
2... g6 {[%clk 0:02:59.4]} 3. Nc3 {[%clk 0:02:47.6]} 3... d5 {[%clk 0:02:59.8]}
4. cxd5 {[%clk 0:02:47.2]} 4... Nxd5 {[%clk 0:03:00.7]} 5. e4 {[%clk 0:02:45.8]}
5... Nxc3 {[%clk 0:03:00.8]} 6. bxc3 {[%clk 0:02:46.7]} 6... Bg7 {[%clk
0:03:01.3]} 7. Nf3 {[%clk 0:02:45.2]} 7... c5 {[%clk 0:03:01.3]} 8. Be3 {[%clk
0:02:43.4]} 8... Bg4 {[%clk 0:02:59.8]} 9. Rb1 {[%clk 0:02:29.4]} 9... O-O
{[%clk 0:02:52.5]} 10. Rxb7 {[%clk 0:02:01.4]} 10... Bxf3 {[%clk 0:02:46.8]} 11.
gxf3 {[%clk 0:01:52.3]} 11... Nc6 {[%clk 0:02:46]} 12. Bb5 {[%clk 0:01:14.8]}
12... cxd4 {[%clk 0:02:45.4]} 13. cxd4 {[%clk 0:00:51]} 13... Nxd4 {[%clk
0:02:39.2]} 14. O-O {[%clk 0:00:39.8]} 14... Qc8 {[%clk 0:02:26]} 15. Ba6 {[%clk
0:00:16.5]} 15... Rd8 {[%clk 0:01:49.1]} 16. Rxa7 {[%clk 0:00:08]} 16... Qc3
{[%clk 0:00:47.4]} 17. Rxa8 {[%clk 0:00:05.7]} 17... Rxa8 {[%clk 0:00:48.3]} 18.
Bxd4 {[%clk 0:00:02.1]} 18... Bxd4 {[%clk 0:00:46.6]} 19. Bd3 {[%clk 0:00:01.7]}
19... Rxa2 {[%clk 0:00:45.3]} 20. Qb1 {[%clk 0:00:02.1]} 20... Rb2 {[%clk
0:00:42.7]} 21. Qc1 {[%clk 0:00:01.8]} 21... Qxd3 {[%clk 0:00:41.5]} 22. Rd1
{[%clk 0:00:01.8]} 22... Qe2 {[%clk 0:00:38.5]} 0-1

[Event "*** Titled Tuesday Blitz"]
[Site "Chess.com"]
[Date "2021.03.02"]
[Round "1"]
[White "LyonBeast"]
[Black "dachessmandan"]
[Result "1-0"]
[WhiteElo "3111"]
[BlackElo "2477"]
[TimeControl "180+1"]
[EndTime "10:06:28 PST"]
[Termination "LyonBeast won by resignation"]

1. d4 {[%clk 0:02:54]} 1... Nf6 {[%clk 0:02:59.6]} 2. c4 {[%clk 0:02:47.6]} 2...
e6 {[%clk 0:02:59.9]} 3. Nf3 {[%clk 0:02:38.7]} 3... Bb4+ {[%clk 0:02:57.9]} 4.
Nbd2 {[%clk 0:02:37.5]} 4... O-O {[%clk 0:02:55.6]} 5. e3 {[%clk 0:02:34.8]}
5... b6 {[%clk 0:02:52.7]} 6. a3 {[%clk 0:02:34.7]} 6... Be7 {[%clk 0:02:51.6]}
7. b4 {[%clk 0:02:34.9]} 7... Bb7 {[%clk 0:02:51]} 8. Bb2 {[%clk 0:02:32.9]}
8... c5 {[%clk 0:02:51.1]} 9. dxc5 {[%clk 0:02:29.4]} 9... bxc5 {[%clk 0:02:52]}
10. b5 {[%clk 0:02:29.5]} 10... d5 {[%clk 0:02:50.8]} 11. Be2 {[%clk 0:02:29.7]}
11... Nbd7 {[%clk 0:02:47.2]} 12. O-O {[%clk 0:02:29.6]} 12... Qc7 {[%clk
0:02:47]} 13. Qc2 {[%clk 0:02:28.5]} 13... Rac8 {[%clk 0:02:39.5]} 14. Rfd1
{[%clk 0:02:24.4]} 14... Rfd8 {[%clk 0:02:35.9]} 15. a4 {[%clk 0:02:22.5]} 15...
e5 {[%clk 0:02:21.5]} 16. cxd5 {[%clk 0:02:18]} 16... Nxd5 {[%clk 0:02:17.9]}
17. Nc4 {[%clk 0:02:09.6]} 17... Bf6 {[%clk 0:01:53.4]} 18. e4 {[%clk
0:01:26.7]} 18... Nb4 {[%clk 0:01:47.6]} 19. Qb3 {[%clk 0:01:26.8]} 19... Bxe4
{[%clk 0:01:42.3]} 20. Nd6 {[%clk 0:01:27]} 20... Bd5 {[%clk 0:01:24.6]} 21.
Rxd5 {[%clk 0:01:24.9]} 21... Nxd5 {[%clk 0:01:25.5]} 22. Nxc8 {[%clk 0:01:20]}
22... c4 {[%clk 0:01:21.8]} 23. Bxc4 {[%clk 0:01:19.6]} 23... Nc5 {[%clk
0:01:19.7]} 24. Qa2 {[%clk 0:01:15.2]} 24... Nb4 {[%clk 0:01:14.5]} 25. Bxf7+
{[%clk 0:01:15.3]} 25... Kf8 {[%clk 0:01:07.3]} 26. Qc4 {[%clk 0:01:13.6]} 26...
Nbd3 {[%clk 0:01:04.7]} 27. Ba3 {[%clk 0:01:05]} 27... Rxc8 {[%clk 0:01:00.9]}
28. Qxd3 {[%clk 0:00:59.7]} 28... Kxf7 {[%clk 0:00:57.1]} 29. Qxh7 {[%clk
0:00:47.8]} 29... Ne6 {[%clk 0:00:53.7]} 30. Rd1 {[%clk 0:00:43.4]} 30... Rd8
{[%clk 0:00:51.3]} 31. Re1 {[%clk 0:00:41.1]} 31... Qc3 {[%clk 0:00:49.8]} 32.
Bc1 {[%clk 0:00:38.7]} 32... Nd4 {[%clk 0:00:37.9]} 33. Nxe5+ {[%clk 0:00:38.7]}
33... Bxe5 {[%clk 0:00:36.8]} 34. Qh5+ {[%clk 0:00:39.3]} 34... g6 {[%clk
0:00:28.8]} 35. Qxe5 {[%clk 0:00:40.2]} 35... Nf5 {[%clk 0:00:24.2]} 36. Qxc3
{[%clk 0:00:39.4]} 36... Rd7 {[%clk 0:00:20.4]} 37. Bg5 {[%clk 0:00:38.9]} 1-0

[Event "*** Titled Tuesday Blitz"]
[Site "Chess.com"]
[Date "2021.03.02"]
[Round "1"]
[White "MaxLeto"]
[Black "baki83"]
[Result "0-1"]
[WhiteElo "2415"]
[BlackElo "2801"]
[TimeControl "180+1"]
[EndTime "10:06:29 PST"]
[Termination "baki83 won by resignation"]

1. g4 {[%clk 0:02:55.9]} 1... e5 {[%clk 0:02:58.8]} 2. Bg2 {[%clk 0:02:55.2]}
2... d5 {[%clk 0:02:58.6]} 3. d4 {[%clk 0:02:49.1]} 3... e4 {[%clk 0:02:55.7]}
4. g5 {[%clk 0:02:47.7]} 4... c6 {[%clk 0:02:53.6]} 5. c4 {[%clk 0:02:45.4]}
5... h6 {[%clk 0:02:47.8]} 6. h4 {[%clk 0:02:40.6]} 6... hxg5 {[%clk 0:02:47]}
7. hxg5 {[%clk 0:02:41.5]} 7... Rxh1 {[%clk 0:02:46.4]} 8. Bxh1 {[%clk 0:02:42]}
8... Qd6 {[%clk 0:02:31.5]} 9. f4 {[%clk 0:02:04.7]} 9... exf3 {[%clk 0:02:26]}
10. Nxf3 {[%clk 0:02:04.9]} 10... Qg3+ {[%clk 0:02:22.7]} 11. Kd2 {[%clk
0:01:51.7]} 11... dxc4 {[%clk 0:02:22.4]} 12. Nc3 {[%clk 0:01:40.2]} 12... Na6
{[%clk 0:02:16.7]} 13. Kc2 {[%clk 0:01:38]} 13... Bf5+ {[%clk 0:02:02.2]} 14. e4
{[%clk 0:01:33.5]} 14... Bg6 {[%clk 0:01:58.9]} 15. a3 {[%clk 0:01:17.8]} 15...
Ne7 {[%clk 0:01:46.8]} 16. Qe2 {[%clk 0:01:03.5]} 16... Nd5 {[%clk 0:01:38.7]}
17. Bd2 {[%clk 0:00:47.3]} 17... Nxc3 {[%clk 0:01:15.6]} 18. Bxc3 {[%clk
0:00:33.2]} 18... O-O-O {[%clk 0:01:15.2]} 19. Re1 {[%clk 0:00:30.6]} 19... Nc7
{[%clk 0:01:07.6]} 20. Qxc4 {[%clk 0:00:22.4]} 20... Nd5 {[%clk 0:01:05.1]} 21.
Bd2 {[%clk 0:00:16.9]} 21... Re8 {[%clk 0:00:57.8]} 22. Ne5 {[%clk 0:00:09.9]}
22... Qxe1 {[%clk 0:00:57.6]} 23. Nxg6 {[%clk 0:00:02.3]} 23... Ne3+ {[%clk
0:00:49.2]} 24. Bxe3 {[%clk 0:00:01.5]} 24... Qxe3 {[%clk 0:00:49.9]} 25. Nxf8
{[%clk 0:00:01.5]} 25... Rxf8 {[%clk 0:00:47.9]} 26. Qd3 {[%clk 0:00:01.1]}
26... Qxd3+ {[%clk 0:00:47.9]} 27. Kxd3 {[%clk 0:00:01.3]} 27... g6 {[%clk
0:00:47.4]} 28. e5 {[%clk 0:00:01.6]} 28... Rh8 {[%clk 0:00:47.3]} 29. Be4
{[%clk 0:00:02]} 29... Rh5 {[%clk 0:00:46.5]} 30. b4 {[%clk 0:00:02]} 30... Rxg5
{[%clk 0:00:46.6]} 0-1

[Event "*** Titled Tuesday Blitz"]
[Site "Chess.com"]
[Date "2021.03.02"]
[Round "1"]
[White "MergenKakabaev"]
[Black "MirMan90"]
[Result "0-1"]
[WhiteElo "2397"]
[BlackElo "2741"]
[TimeControl "180+1"]
[EndTime "10:06:30 PST"]
[Termination "MirMan90 won by resignation"]

1. e4 {[%clk 0:02:46.7]} 1... c5 {[%clk 0:02:59.5]} 2. Nf3 {[%clk 0:02:45.8]}
2... e6 {[%clk 0:02:59.8]} 3. d4 {[%clk 0:02:45.3]} 3... cxd4 {[%clk 0:03:00.1]}
4. Nxd4 {[%clk 0:02:46.2]} 4... Nc6 {[%clk 0:03:00.5]} 5. Nxc6 {[%clk
0:02:45.6]} 5... bxc6 {[%clk 0:03:00.3]} 6. Bd3 {[%clk 0:02:44.7]} 6... d5
{[%clk 0:03:00.4]} 7. Nd2 {[%clk 0:02:44]} 7... Nf6 {[%clk 0:03:00.3]} 8. O-O
{[%clk 0:02:38.4]} 8... Be7 {[%clk 0:03:00.2]} 9. Qe2 {[%clk 0:02:37.8]} 9...
O-O {[%clk 0:02:59.3]} 10. b3 {[%clk 0:02:38]} 10... a5 {[%clk 0:02:59.1]} 11.
a4 {[%clk 0:02:37.5]} 11... Re8 {[%clk 0:02:56.2]} 12. Bb2 {[%clk 0:02:37]}
12... Qb6 {[%clk 0:02:55.9]} 13. Kh1 {[%clk 0:02:34.9]} 13... Ba6 {[%clk
0:02:55.6]} 14. e5 {[%clk 0:02:31.6]} 14... Nd7 {[%clk 0:02:54.1]} 15. f4 {[%clk
0:02:29.6]} 15... Bxd3 {[%clk 0:02:51.6]} 16. Qxd3 {[%clk 0:02:23.4]} 16... g6
{[%clk 0:02:47.3]} 17. Nf3 {[%clk 0:01:54.8]} 17... c5 {[%clk 0:02:45.2]} 18.
Bc3 {[%clk 0:01:46.9]} 18... Rec8 {[%clk 0:02:38.3]} 19. Qb5 {[%clk 0:01:37.7]}
19... Qc7 {[%clk 0:02:22.1]} 20. Qe2 {[%clk 0:00:43.2]} 20... c4 {[%clk
0:02:20.9]} 21. Bd4 {[%clk 0:00:43.3]} 21... cxb3 {[%clk 0:02:17.4]} 22. cxb3
{[%clk 0:00:44.1]} 22... Qb7 {[%clk 0:02:17.3]} 23. Rab1 {[%clk 0:00:42.3]}
23... Nc5 {[%clk 0:02:13.5]} 24. Bxc5 {[%clk 0:00:41.2]} 24... Rxc5 {[%clk
0:02:10.6]} 25. h4 {[%clk 0:00:41.1]} 25... Rac8 {[%clk 0:02:09.3]} 26. h5
{[%clk 0:00:40.9]} 26... Rc2 {[%clk 0:02:04.5]} 27. Qe1 {[%clk 0:00:40.4]} 27...
Qb4 {[%clk 0:02:01.1]} 28. Qg3 {[%clk 0:00:39.9]} 28... Qe4 {[%clk 0:01:57.3]}
29. h6 {[%clk 0:00:31.7]} 29... Qf5 {[%clk 0:01:51]} 30. Ng5 {[%clk 0:00:30.6]}
30... Bf8 {[%clk 0:01:41.2]} 31. Qh4 {[%clk 0:00:29.8]} 31... R8c3 {[%clk
0:01:31.9]} 32. Kh2 {[%clk 0:00:22.3]} 32... d4 {[%clk 0:01:28.4]} 33. Rf3
{[%clk 0:00:15.1]} 33... Be7 {[%clk 0:01:16.5]} 34. Rd1 {[%clk 0:00:13.3]} 34...
Rxf3 {[%clk 0:01:14.8]} 35. Rxd4 {[%clk 0:00:13.2]} 35... Rff2 {[%clk
0:01:09.9]} 0-1